{"text_format":"1","workbook":"xlsx","n_sheets":2,"sheets":["Main","Prices"],"not_rendered":{"charts":4,"images":1,"macros":0,"external_links":0,"defined_names":66,"comments":0,"pivot_tables":0},"unopened":[],"bounds":{"document_bytes":16777216,"sheet_cells":100000,"rows_first":2000,"rows_last":500,"rows_between":2000,"halvings":0,"cell_chars":16384,"cell_head_chars":4096},"cells_cut":0,"cells_raw":0,"read":"whole","date_system":"1900"}

{"sheet":"Main","index":0,"n_rows":55,"n_cols":8,"rows_kept":55,"cut":false,"hidden":false,"merged":[[1,1,1,4]]}
[{"$error":"#VALUE!"}]
["YOUR API KEY:","Your_API_KEY"]
["*Regester and get the key"]
[]
["Name","Ticker","Market cap","Change,%","Close","Volume","Volume($)","Performance(Jun 2024)"]
["Accenture Plc","ACN",{"$f":"VALUE(_xlfn.WEBSERVICE(\"https://eodhd.com/api/fundamentals/\"&B6&\"?api_token=\"&$B$2&\"&fmt=csv&filter=Highlights::MarketCapitalization\"))","v":{"$error":"#VALUE!"}},{"$f":"VALUE(_xlfn.WEBSERVICE(\"https://eodhd.com/api/real-time/\"&B6&\"?api_token=\"&$B$2&\"&fmt=json&&filter=change_p\"))","v":{"$error":"#VALUE!"}},{"$f":"VALUE(_xlfn.WEBSERVICE(\"https://eodhd.com/api/real-time/\"&B6&\"?api_token=\"&$B$2&\"&fmt=json&&filter=close\"))","v":{"$error":"#VALUE!"}},{"$f":"VALUE(_xlfn.WEBSERVICE(\"https://eodhd.com/api/real-time/\"&B6&\"?api_token=\"&$B$2&\"&fmt=json&&filter=volume\"))","v":{"$error":"#VALUE!"}},{"$f":"E6*F6","v":{"$error":"#VALUE!"}}]
["The Walt Disney Company","DIS",{"$f":"VALUE(_xlfn.WEBSERVICE(\"https://eodhd.com/api/fundamentals/\"&B7&\"?api_token=\"&$B$2&\"&fmt=csv&filter=Highlights::MarketCapitalization\"))","v":{"$error":"#VALUE!"}},{"$f":"VALUE(_xlfn.WEBSERVICE(\"https://eodhd.com/api/real-time/\"&B7&\"?api_token=\"&$B$2&\"&fmt=json&&filter=change_p\"))","v":{"$error":"#VALUE!"}},{"$f":"VALUE(_xlfn.WEBSERVICE(\"https://eodhd.com/api/real-time/\"&B7&\"?api_token=\"&$B$2&\"&fmt=json&&filter=close\"))","v":{"$error":"#VALUE!"}},{"$f":"VALUE(_xlfn.WEBSERVICE(\"https://eodhd.com/api/real-time/\"&B7&\"?api_token=\"&$B$2&\"&fmt=json&&filter=volume\"))","v":{"$error":"#VALUE!"}},{"$f":"E7*F7","v":{"$error":"#VALUE!"}}]
["Exxon Mobil Corporation","XOM",{"$f":"VALUE(_xlfn.WEBSERVICE(\"https://eodhd.com/api/fundamentals/\"&B8&\"?api_token=\"&$B$2&\"&fmt=csv&filter=Highlights::MarketCapitalization\"))","v":{"$error":"#VALUE!"}},{"$f":"VALUE(_xlfn.WEBSERVICE(\"https://eodhd.com/api/real-time/\"&B8&\"?api_token=\"&$B$2&\"&fmt=json&&filter=change_p\"))","v":{"$error":"#VALUE!"}},{"$f":"VALUE(_xlfn.WEBSERVICE(\"https://eodhd.com/api/real-time/\"&B8&\"?api_token=\"&$B$2&\"&fmt=json&&filter=close\"))","v":{"$error":"#VALUE!"}},{"$f":"VALUE(_xlfn.WEBSERVICE(\"https://eodhd.com/api/real-time/\"&B8&\"?api_token=\"&$B$2&\"&fmt=json&&filter=volume\"))","v":{"$error":"#VALUE!"}},{"$f":"E8*F8","v":{"$error":"#VALUE!"}}]
["Verizon Communications","VZ",{"$f":"VALUE(_xlfn.WEBSERVICE(\"https://eodhd.com/api/fundamentals/\"&B9&\"?api_token=\"&$B$2&\"&fmt=csv&filter=Highlights::MarketCapitalization\"))","v":{"$error":"#VALUE!"}},{"$f":"VALUE(_xlfn.WEBSERVICE(\"https://eodhd.com/api/real-time/\"&B9&\"?api_token=\"&$B$2&\"&fmt=json&&filter=change_p\"))","v":{"$error":"#VALUE!"}},{"$f":"VALUE(_xlfn.WEBSERVICE(\"https://eodhd.com/api/real-time/\"&B9&\"?api_token=\"&$B$2&\"&fmt=json&&filter=close\"))","v":{"$error":"#VALUE!"}},{"$f":"VALUE(_xlfn.WEBSERVICE(\"https://eodhd.com/api/real-time/\"&B9&\"?api_token=\"&$B$2&\"&fmt=json&&filter=volume\"))","v":{"$error":"#VALUE!"}},{"$f":"E9*F9","v":{"$error":"#VALUE!"}}]
["Abbvie Inc.","ABBV",{"$f":"VALUE(_xlfn.WEBSERVICE(\"https://eodhd.com/api/fundamentals/\"&B10&\"?api_token=\"&$B$2&\"&fmt=csv&filter=Highlights::MarketCapitalization\"))","v":{"$error":"#VALUE!"}},{"$f":"VALUE(_xlfn.WEBSERVICE(\"https://eodhd.com/api/real-time/\"&B10&\"?api_token=\"&$B$2&\"&fmt=json&&filter=change_p\"))","v":{"$error":"#VALUE!"}},{"$f":"VALUE(_xlfn.WEBSERVICE(\"https://eodhd.com/api/real-time/\"&B10&\"?api_token=\"&$B$2&\"&fmt=json&&filter=close\"))","v":{"$error":"#VALUE!"}},{"$f":"VALUE(_xlfn.WEBSERVICE(\"https://eodhd.com/api/real-time/\"&B10&\"?api_token=\"&$B$2&\"&fmt=json&&filter=volume\"))","v":{"$error":"#VALUE!"}},{"$f":"E10*F10","v":{"$error":"#VALUE!"}}]
["Intel Corp","INTC",{"$f":"VALUE(_xlfn.WEBSERVICE(\"https://eodhd.com/api/fundamentals/\"&B11&\"?api_token=\"&$B$2&\"&fmt=csv&filter=Highlights::MarketCapitalization\"))","v":{"$error":"#VALUE!"}},{"$f":"VALUE(_xlfn.WEBSERVICE(\"https://eodhd.com/api/real-time/\"&B11&\"?api_token=\"&$B$2&\"&fmt=json&&filter=change_p\"))","v":{"$error":"#VALUE!"}},{"$f":"VALUE(_xlfn.WEBSERVICE(\"https://eodhd.com/api/real-time/\"&B11&\"?api_token=\"&$B$2&\"&fmt=json&&filter=close\"))","v":{"$error":"#VALUE!"}},{"$f":"VALUE(_xlfn.WEBSERVICE(\"https://eodhd.com/api/real-time/\"&B11&\"?api_token=\"&$B$2&\"&fmt=json&&filter=volume\"))","v":{"$error":"#VALUE!"}},{"$f":"E11*F11","v":{"$error":"#VALUE!"}}]
["Chevron Corporation","CVX",{"$f":"VALUE(_xlfn.WEBSERVICE(\"https://eodhd.com/api/fundamentals/\"&B12&\"?api_token=\"&$B$2&\"&fmt=csv&filter=Highlights::MarketCapitalization\"))","v":{"$error":"#VALUE!"}},{"$f":"VALUE(_xlfn.WEBSERVICE(\"https://eodhd.com/api/real-time/\"&B12&\"?api_token=\"&$B$2&\"&fmt=json&&filter=change_p\"))","v":{"$error":"#VALUE!"}},{"$f":"VALUE(_xlfn.WEBSERVICE(\"https://eodhd.com/api/real-time/\"&B12&\"?api_token=\"&$B$2&\"&fmt=json&&filter=close\"))","v":{"$error":"#VALUE!"}},{"$f":"VALUE(_xlfn.WEBSERVICE(\"https://eodhd.com/api/real-time/\"&B12&\"?api_token=\"&$B$2&\"&fmt=json&&filter=volume\"))","v":{"$error":"#VALUE!"}},{"$f":"E12*F12","v":{"$error":"#VALUE!"}}]
["Pepsico, Inc.","PEP",{"$f":"VALUE(_xlfn.WEBSERVICE(\"https://eodhd.com/api/fundamentals/\"&B13&\"?api_token=\"&$B$2&\"&fmt=csv&filter=Highlights::MarketCapitalization\"))","v":{"$error":"#VALUE!"}},{"$f":"VALUE(_xlfn.WEBSERVICE(\"https://eodhd.com/api/real-time/\"&B13&\"?api_token=\"&$B$2&\"&fmt=json&&filter=change_p\"))","v":{"$error":"#VALUE!"}},{"$f":"VALUE(_xlfn.WEBSERVICE(\"https://eodhd.com/api/real-time/\"&B13&\"?api_token=\"&$B$2&\"&fmt=json&&filter=close\"))","v":{"$error":"#VALUE!"}},{"$f":"VALUE(_xlfn.WEBSERVICE(\"https://eodhd.com/api/real-time/\"&B13&\"?api_token=\"&$B$2&\"&fmt=json&&filter=volume\"))","v":{"$error":"#VALUE!"}},{"$f":"E13*F13","v":{"$error":"#VALUE!"}}]
["Texas Instruments Incorporated","TXN",{"$f":"VALUE(_xlfn.WEBSERVICE(\"https://eodhd.com/api/fundamentals/\"&B14&\"?api_token=\"&$B$2&\"&fmt=csv&filter=Highlights::MarketCapitalization\"))","v":{"$error":"#VALUE!"}},{"$f":"VALUE(_xlfn.WEBSERVICE(\"https://eodhd.com/api/real-time/\"&B14&\"?api_token=\"&$B$2&\"&fmt=json&&filter=change_p\"))","v":{"$error":"#VALUE!"}},{"$f":"VALUE(_xlfn.WEBSERVICE(\"https://eodhd.com/api/real-time/\"&B14&\"?api_token=\"&$B$2&\"&fmt=json&&filter=close\"))","v":{"$error":"#VALUE!"}},{"$f":"VALUE(_xlfn.WEBSERVICE(\"https://eodhd.com/api/real-time/\"&B14&\"?api_token=\"&$B$2&\"&fmt=json&&filter=volume\"))","v":{"$error":"#VALUE!"}},{"$f":"E14*F14","v":{"$error":"#VALUE!"}}]
["Mastercard Incorporated","MA",{"$f":"VALUE(_xlfn.WEBSERVICE(\"https://eodhd.com/api/fundamentals/\"&B15&\"?api_token=\"&$B$2&\"&fmt=csv&filter=Highlights::MarketCapitalization\"))","v":{"$error":"#VALUE!"}},{"$f":"VALUE(_xlfn.WEBSERVICE(\"https://eodhd.com/api/real-time/\"&B15&\"?api_token=\"&$B$2&\"&fmt=json&&filter=change_p\"))","v":{"$error":"#VALUE!"}},{"$f":"VALUE(_xlfn.WEBSERVICE(\"https://eodhd.com/api/real-time/\"&B15&\"?api_token=\"&$B$2&\"&fmt=json&&filter=close\"))","v":{"$error":"#VALUE!"}},{"$f":"VALUE(_xlfn.WEBSERVICE(\"https://eodhd.com/api/real-time/\"&B15&\"?api_token=\"&$B$2&\"&fmt=json&&filter=volume\"))","v":{"$error":"#VALUE!"}},{"$f":"E15*F15","v":{"$error":"#VALUE!"}}]
["Comcast Corp","CMCSA",{"$f":"VALUE(_xlfn.WEBSERVICE(\"https://eodhd.com/api/fundamentals/\"&B16&\"?api_token=\"&$B$2&\"&fmt=csv&filter=Highlights::MarketCapitalization\"))","v":{"$error":"#VALUE!"}},{"$f":"VALUE(_xlfn.WEBSERVICE(\"https://eodhd.com/api/real-time/\"&B16&\"?api_token=\"&$B$2&\"&fmt=json&&filter=change_p\"))","v":{"$error":"#VALUE!"}},{"$f":"VALUE(_xlfn.WEBSERVICE(\"https://eodhd.com/api/real-time/\"&B16&\"?api_token=\"&$B$2&\"&fmt=json&&filter=close\"))","v":{"$error":"#VALUE!"}},{"$f":"VALUE(_xlfn.WEBSERVICE(\"https://eodhd.com/api/real-time/\"&B16&\"?api_token=\"&$B$2&\"&fmt=json&&filter=volume\"))","v":{"$error":"#VALUE!"}},{"$f":"E16*F16","v":{"$error":"#VALUE!"}}]
["Wells Fargo & Co.","WFC",{"$f":"VALUE(_xlfn.WEBSERVICE(\"https://eodhd.com/api/fundamentals/\"&B17&\"?api_token=\"&$B$2&\"&fmt=csv&filter=Highlights::MarketCapitalization\"))","v":{"$error":"#VALUE!"}},{"$f":"VALUE(_xlfn.WEBSERVICE(\"https://eodhd.com/api/real-time/\"&B17&\"?api_token=\"&$B$2&\"&fmt=json&&filter=change_p\"))","v":{"$error":"#VALUE!"}},{"$f":"VALUE(_xlfn.WEBSERVICE(\"https://eodhd.com/api/real-time/\"&B17&\"?api_token=\"&$B$2&\"&fmt=json&&filter=close\"))","v":{"$error":"#VALUE!"}},{"$f":"VALUE(_xlfn.WEBSERVICE(\"https://eodhd.com/api/real-time/\"&B17&\"?api_token=\"&$B$2&\"&fmt=json&&filter=volume\"))","v":{"$error":"#VALUE!"}},{"$f":"E17*F17","v":{"$error":"#VALUE!"}}]
["Broadcom Inc.","AVGO",{"$f":"VALUE(_xlfn.WEBSERVICE(\"https://eodhd.com/api/fundamentals/\"&B18&\"?api_token=\"&$B$2&\"&fmt=csv&filter=Highlights::MarketCapitalization\"))","v":{"$error":"#VALUE!"}},{"$f":"VALUE(_xlfn.WEBSERVICE(\"https://eodhd.com/api/real-time/\"&B18&\"?api_token=\"&$B$2&\"&fmt=json&&filter=change_p\"))","v":{"$error":"#VALUE!"}},{"$f":"VALUE(_xlfn.WEBSERVICE(\"https://eodhd.com/api/real-time/\"&B18&\"?api_token=\"&$B$2&\"&fmt=json&&filter=close\"))","v":{"$error":"#VALUE!"}},{"$f":"VALUE(_xlfn.WEBSERVICE(\"https://eodhd.com/api/real-time/\"&B18&\"?api_token=\"&$B$2&\"&fmt=json&&filter=volume\"))","v":{"$error":"#VALUE!"}},{"$f":"E18*F18","v":{"$error":"#VALUE!"}}]
["Advanced Micro Devices","AMD",{"$f":"VALUE(_xlfn.WEBSERVICE(\"https://eodhd.com/api/fundamentals/\"&B19&\"?api_token=\"&$B$2&\"&fmt=csv&filter=Highlights::MarketCapitalization\"))","v":{"$error":"#VALUE!"}},{"$f":"VALUE(_xlfn.WEBSERVICE(\"https://eodhd.com/api/real-time/\"&B19&\"?api_token=\"&$B$2&\"&fmt=json&&filter=change_p\"))","v":{"$error":"#VALUE!"}},{"$f":"VALUE(_xlfn.WEBSERVICE(\"https://eodhd.com/api/real-time/\"&B19&\"?api_token=\"&$B$2&\"&fmt=json&&filter=close\"))","v":{"$error":"#VALUE!"}},{"$f":"VALUE(_xlfn.WEBSERVICE(\"https://eodhd.com/api/real-time/\"&B19&\"?api_token=\"&$B$2&\"&fmt=json&&filter=volume\"))","v":{"$error":"#VALUE!"}},{"$f":"E19*F19","v":{"$error":"#VALUE!"}}]
["Caterpillar Inc.","CAT",{"$f":"VALUE(_xlfn.WEBSERVICE(\"https://eodhd.com/api/fundamentals/\"&B20&\"?api_token=\"&$B$2&\"&fmt=csv&filter=Highlights::MarketCapitalization\"))","v":{"$error":"#VALUE!"}},{"$f":"VALUE(_xlfn.WEBSERVICE(\"https://eodhd.com/api/real-time/\"&B20&\"?api_token=\"&$B$2&\"&fmt=json&&filter=change_p\"))","v":{"$error":"#VALUE!"}},{"$f":"VALUE(_xlfn.WEBSERVICE(\"https://eodhd.com/api/real-time/\"&B20&\"?api_token=\"&$B$2&\"&fmt=json&&filter=close\"))","v":{"$error":"#VALUE!"}},{"$f":"VALUE(_xlfn.WEBSERVICE(\"https://eodhd.com/api/real-time/\"&B20&\"?api_token=\"&$B$2&\"&fmt=json&&filter=volume\"))","v":{"$error":"#VALUE!"}},{"$f":"E20*F20","v":{"$error":"#VALUE!"}}]
["Jpmorgan Chase & Co.","JPM",{"$f":"VALUE(_xlfn.WEBSERVICE(\"https://eodhd.com/api/fundamentals/\"&B21&\"?api_token=\"&$B$2&\"&fmt=csv&filter=Highlights::MarketCapitalization\"))","v":{"$error":"#VALUE!"}},{"$f":"VALUE(_xlfn.WEBSERVICE(\"https://eodhd.com/api/real-time/\"&B21&\"?api_token=\"&$B$2&\"&fmt=json&&filter=change_p\"))","v":{"$error":"#VALUE!"}},{"$f":"VALUE(_xlfn.WEBSERVICE(\"https://eodhd.com/api/real-time/\"&B21&\"?api_token=\"&$B$2&\"&fmt=json&&filter=close\"))","v":{"$error":"#VALUE!"}},{"$f":"VALUE(_xlfn.WEBSERVICE(\"https://eodhd.com/api/real-time/\"&B21&\"?api_token=\"&$B$2&\"&fmt=json&&filter=volume\"))","v":{"$error":"#VALUE!"}},{"$f":"E21*F21","v":{"$error":"#VALUE!"}}]
["Danaher Corporation","DHR",{"$f":"VALUE(_xlfn.WEBSERVICE(\"https://eodhd.com/api/fundamentals/\"&B22&\"?api_token=\"&$B$2&\"&fmt=csv&filter=Highlights::MarketCapitalization\"))","v":{"$error":"#VALUE!"}},{"$f":"VALUE(_xlfn.WEBSERVICE(\"https://eodhd.com/api/real-time/\"&B22&\"?api_token=\"&$B$2&\"&fmt=json&&filter=change_p\"))","v":{"$error":"#VALUE!"}},{"$f":"VALUE(_xlfn.WEBSERVICE(\"https://eodhd.com/api/real-time/\"&B22&\"?api_token=\"&$B$2&\"&fmt=json&&filter=close\"))","v":{"$error":"#VALUE!"}},{"$f":"VALUE(_xlfn.WEBSERVICE(\"https://eodhd.com/api/real-time/\"&B22&\"?api_token=\"&$B$2&\"&fmt=json&&filter=volume\"))","v":{"$error":"#VALUE!"}},{"$f":"E22*F22","v":{"$error":"#VALUE!"}}]
["Unitedhealth Group Incorporated","UNH",{"$f":"VALUE(_xlfn.WEBSERVICE(\"https://eodhd.com/api/fundamentals/\"&B23&\"?api_token=\"&$B$2&\"&fmt=csv&filter=Highlights::MarketCapitalization\"))","v":{"$error":"#VALUE!"}},{"$f":"VALUE(_xlfn.WEBSERVICE(\"https://eodhd.com/api/real-time/\"&B23&\"?api_token=\"&$B$2&\"&fmt=json&&filter=change_p\"))","v":{"$error":"#VALUE!"}},{"$f":"VALUE(_xlfn.WEBSERVICE(\"https://eodhd.com/api/real-time/\"&B23&\"?api_token=\"&$B$2&\"&fmt=json&&filter=close\"))","v":{"$error":"#VALUE!"}},{"$f":"VALUE(_xlfn.WEBSERVICE(\"https://eodhd.com/api/real-time/\"&B23&\"?api_token=\"&$B$2&\"&fmt=json&&filter=volume\"))","v":{"$error":"#VALUE!"}},{"$f":"E23*F23","v":{"$error":"#VALUE!"}}]
["Thermo Fisher Scientific, Inc.","TMO",{"$f":"VALUE(_xlfn.WEBSERVICE(\"https://eodhd.com/api/fundamentals/\"&B24&\"?api_token=\"&$B$2&\"&fmt=csv&filter=Highlights::MarketCapitalization\"))","v":{"$error":"#VALUE!"}},{"$f":"VALUE(_xlfn.WEBSERVICE(\"https://eodhd.com/api/real-time/\"&B24&\"?api_token=\"&$B$2&\"&fmt=json&&filter=change_p\"))","v":{"$error":"#VALUE!"}},{"$f":"VALUE(_xlfn.WEBSERVICE(\"https://eodhd.com/api/real-time/\"&B24&\"?api_token=\"&$B$2&\"&fmt=json&&filter=close\"))","v":{"$error":"#VALUE!"}},{"$f":"VALUE(_xlfn.WEBSERVICE(\"https://eodhd.com/api/real-time/\"&B24&\"?api_token=\"&$B$2&\"&fmt=json&&filter=volume\"))","v":{"$error":"#VALUE!"}},{"$f":"E24*F24","v":{"$error":"#VALUE!"}}]
["Amazon.com Inc","AMZN",{"$f":"VALUE(_xlfn.WEBSERVICE(\"https://eodhd.com/api/fundamentals/\"&B25&\"?api_token=\"&$B$2&\"&fmt=csv&filter=Highlights::MarketCapitalization\"))","v":{"$error":"#VALUE!"}},{"$f":"VALUE(_xlfn.WEBSERVICE(\"https://eodhd.com/api/real-time/\"&B25&\"?api_token=\"&$B$2&\"&fmt=json&&filter=change_p\"))","v":{"$error":"#VALUE!"}},{"$f":"VALUE(_xlfn.WEBSERVICE(\"https://eodhd.com/api/real-time/\"&B25&\"?api_token=\"&$B$2&\"&fmt=json&&filter=close\"))","v":{"$error":"#VALUE!"}},{"$f":"VALUE(_xlfn.WEBSERVICE(\"https://eodhd.com/api/real-time/\"&B25&\"?api_token=\"&$B$2&\"&fmt=json&&filter=volume\"))","v":{"$error":"#VALUE!"}},{"$f":"E25*F25","v":{"$error":"#VALUE!"}}]
["Bank of America Corporation","BAC",{"$f":"VALUE(_xlfn.WEBSERVICE(\"https://eodhd.com/api/fundamentals/\"&B26&\"?api_token=\"&$B$2&\"&fmt=csv&filter=Highlights::MarketCapitalization\"))","v":{"$error":"#VALUE!"}},{"$f":"VALUE(_xlfn.WEBSERVICE(\"https://eodhd.com/api/real-time/\"&B26&\"?api_token=\"&$B$2&\"&fmt=json&&filter=change_p\"))","v":{"$error":"#VALUE!"}},{"$f":"VALUE(_xlfn.WEBSERVICE(\"https://eodhd.com/api/real-time/\"&B26&\"?api_token=\"&$B$2&\"&fmt=json&&filter=close\"))","v":{"$error":"#VALUE!"}},{"$f":"VALUE(_xlfn.WEBSERVICE(\"https://eodhd.com/api/real-time/\"&B26&\"?api_token=\"&$B$2&\"&fmt=json&&filter=volume\"))","v":{"$error":"#VALUE!"}},{"$f":"E26*F26","v":{"$error":"#VALUE!"}}]
["Cisco Systems, Inc.","CSCO",{"$f":"VALUE(_xlfn.WEBSERVICE(\"https://eodhd.com/api/fundamentals/\"&B27&\"?api_token=\"&$B$2&\"&fmt=csv&filter=Highlights::MarketCapitalization\"))","v":{"$error":"#VALUE!"}},{"$f":"VALUE(_xlfn.WEBSERVICE(\"https://eodhd.com/api/real-time/\"&B27&\"?api_token=\"&$B$2&\"&fmt=json&&filter=change_p\"))","v":{"$error":"#VALUE!"}},{"$f":"VALUE(_xlfn.WEBSERVICE(\"https://eodhd.com/api/real-time/\"&B27&\"?api_token=\"&$B$2&\"&fmt=json&&filter=close\"))","v":{"$error":"#VALUE!"}},{"$f":"VALUE(_xlfn.WEBSERVICE(\"https://eodhd.com/api/real-time/\"&B27&\"?api_token=\"&$B$2&\"&fmt=json&&filter=volume\"))","v":{"$error":"#VALUE!"}},{"$f":"E27*F27","v":{"$error":"#VALUE!"}}]
["Oracle Corp","ORCL",{"$f":"VALUE(_xlfn.WEBSERVICE(\"https://eodhd.com/api/fundamentals/\"&B28&\"?api_token=\"&$B$2&\"&fmt=csv&filter=Highlights::MarketCapitalization\"))","v":{"$error":"#VALUE!"}},{"$f":"VALUE(_xlfn.WEBSERVICE(\"https://eodhd.com/api/real-time/\"&B28&\"?api_token=\"&$B$2&\"&fmt=json&&filter=change_p\"))","v":{"$error":"#VALUE!"}},{"$f":"VALUE(_xlfn.WEBSERVICE(\"https://eodhd.com/api/real-time/\"&B28&\"?api_token=\"&$B$2&\"&fmt=json&&filter=close\"))","v":{"$error":"#VALUE!"}},{"$f":"VALUE(_xlfn.WEBSERVICE(\"https://eodhd.com/api/real-time/\"&B28&\"?api_token=\"&$B$2&\"&fmt=json&&filter=volume\"))","v":{"$error":"#VALUE!"}},{"$f":"E28*F28","v":{"$error":"#VALUE!"}}]
["Coca-Cola Company","KO",{"$f":"VALUE(_xlfn.WEBSERVICE(\"https://eodhd.com/api/fundamentals/\"&B29&\"?api_token=\"&$B$2&\"&fmt=csv&filter=Highlights::MarketCapitalization\"))","v":{"$error":"#VALUE!"}},{"$f":"VALUE(_xlfn.WEBSERVICE(\"https://eodhd.com/api/real-time/\"&B29&\"?api_token=\"&$B$2&\"&fmt=json&&filter=change_p\"))","v":{"$error":"#VALUE!"}},{"$f":"VALUE(_xlfn.WEBSERVICE(\"https://eodhd.com/api/real-time/\"&B29&\"?api_token=\"&$B$2&\"&fmt=json&&filter=close\"))","v":{"$error":"#VALUE!"}},{"$f":"VALUE(_xlfn.WEBSERVICE(\"https://eodhd.com/api/real-time/\"&B29&\"?api_token=\"&$B$2&\"&fmt=json&&filter=volume\"))","v":{"$error":"#VALUE!"}},{"$f":"E29*F29","v":{"$error":"#VALUE!"}}]
["Alphabet Inc. Class C","GOOG",{"$f":"VALUE(_xlfn.WEBSERVICE(\"https://eodhd.com/api/fundamentals/\"&B30&\"?api_token=\"&$B$2&\"&fmt=csv&filter=Highlights::MarketCapitalization\"))","v":{"$error":"#VALUE!"}},{"$f":"VALUE(_xlfn.WEBSERVICE(\"https://eodhd.com/api/real-time/\"&B30&\"?api_token=\"&$B$2&\"&fmt=json&&filter=change_p\"))","v":{"$error":"#VALUE!"}},{"$f":"VALUE(_xlfn.WEBSERVICE(\"https://eodhd.com/api/real-time/\"&B30&\"?api_token=\"&$B$2&\"&fmt=json&&filter=close\"))","v":{"$error":"#VALUE!"}},{"$f":"VALUE(_xlfn.WEBSERVICE(\"https://eodhd.com/api/real-time/\"&B30&\"?api_token=\"&$B$2&\"&fmt=json&&filter=volume\"))","v":{"$error":"#VALUE!"}},{"$f":"E30*F30","v":{"$error":"#VALUE!"}}]
["Intuit Inc","INTU",{"$f":"VALUE(_xlfn.WEBSERVICE(\"https://eodhd.com/api/fundamentals/\"&B31&\"?api_token=\"&$B$2&\"&fmt=csv&filter=Highlights::MarketCapitalization\"))","v":{"$error":"#VALUE!"}},{"$f":"VALUE(_xlfn.WEBSERVICE(\"https://eodhd.com/api/real-time/\"&B31&\"?api_token=\"&$B$2&\"&fmt=json&&filter=change_p\"))","v":{"$error":"#VALUE!"}},{"$f":"VALUE(_xlfn.WEBSERVICE(\"https://eodhd.com/api/real-time/\"&B31&\"?api_token=\"&$B$2&\"&fmt=json&&filter=close\"))","v":{"$error":"#VALUE!"}},{"$f":"VALUE(_xlfn.WEBSERVICE(\"https://eodhd.com/api/real-time/\"&B31&\"?api_token=\"&$B$2&\"&fmt=json&&filter=volume\"))","v":{"$error":"#VALUE!"}},{"$f":"E31*F31","v":{"$error":"#VALUE!"}}]
["Abbott Laboratories","ABT",{"$f":"VALUE(_xlfn.WEBSERVICE(\"https://eodhd.com/api/fundamentals/\"&B32&\"?api_token=\"&$B$2&\"&fmt=csv&filter=Highlights::MarketCapitalization\"))","v":{"$error":"#VALUE!"}},{"$f":"VALUE(_xlfn.WEBSERVICE(\"https://eodhd.com/api/real-time/\"&B32&\"?api_token=\"&$B$2&\"&fmt=json&&filter=change_p\"))","v":{"$error":"#VALUE!"}},{"$f":"VALUE(_xlfn.WEBSERVICE(\"https://eodhd.com/api/real-time/\"&B32&\"?api_token=\"&$B$2&\"&fmt=json&&filter=close\"))","v":{"$error":"#VALUE!"}},{"$f":"VALUE(_xlfn.WEBSERVICE(\"https://eodhd.com/api/real-time/\"&B32&\"?api_token=\"&$B$2&\"&fmt=json&&filter=volume\"))","v":{"$error":"#VALUE!"}},{"$f":"E32*F32","v":{"$error":"#VALUE!"}}]
["Merck & Co., Inc.","MRK",{"$f":"VALUE(_xlfn.WEBSERVICE(\"https://eodhd.com/api/fundamentals/\"&B33&\"?api_token=\"&$B$2&\"&fmt=csv&filter=Highlights::MarketCapitalization\"))","v":{"$error":"#VALUE!"}},{"$f":"VALUE(_xlfn.WEBSERVICE(\"https://eodhd.com/api/real-time/\"&B33&\"?api_token=\"&$B$2&\"&fmt=json&&filter=change_p\"))","v":{"$error":"#VALUE!"}},{"$f":"VALUE(_xlfn.WEBSERVICE(\"https://eodhd.com/api/real-time/\"&B33&\"?api_token=\"&$B$2&\"&fmt=json&&filter=close\"))","v":{"$error":"#VALUE!"}},{"$f":"VALUE(_xlfn.WEBSERVICE(\"https://eodhd.com/api/real-time/\"&B33&\"?api_token=\"&$B$2&\"&fmt=json&&filter=volume\"))","v":{"$error":"#VALUE!"}},{"$f":"E33*F33","v":{"$error":"#VALUE!"}}]
["Johnson & Johnson","JNJ",{"$f":"VALUE(_xlfn.WEBSERVICE(\"https://eodhd.com/api/fundamentals/\"&B34&\"?api_token=\"&$B$2&\"&fmt=csv&filter=Highlights::MarketCapitalization\"))","v":{"$error":"#VALUE!"}},{"$f":"VALUE(_xlfn.WEBSERVICE(\"https://eodhd.com/api/real-time/\"&B34&\"?api_token=\"&$B$2&\"&fmt=json&&filter=change_p\"))","v":{"$error":"#VALUE!"}},{"$f":"VALUE(_xlfn.WEBSERVICE(\"https://eodhd.com/api/real-time/\"&B34&\"?api_token=\"&$B$2&\"&fmt=json&&filter=close\"))","v":{"$error":"#VALUE!"}},{"$f":"VALUE(_xlfn.WEBSERVICE(\"https://eodhd.com/api/real-time/\"&B34&\"?api_token=\"&$B$2&\"&fmt=json&&filter=volume\"))","v":{"$error":"#VALUE!"}},{"$f":"E34*F34","v":{"$error":"#VALUE!"}}]
["Nvidia Corp","NVDA",{"$f":"VALUE(_xlfn.WEBSERVICE(\"https://eodhd.com/api/fundamentals/\"&B35&\"?api_token=\"&$B$2&\"&fmt=csv&filter=Highlights::MarketCapitalization\"))","v":{"$error":"#VALUE!"}},{"$f":"VALUE(_xlfn.WEBSERVICE(\"https://eodhd.com/api/real-time/\"&B35&\"?api_token=\"&$B$2&\"&fmt=json&&filter=change_p\"))","v":{"$error":"#VALUE!"}},{"$f":"VALUE(_xlfn.WEBSERVICE(\"https://eodhd.com/api/real-time/\"&B35&\"?api_token=\"&$B$2&\"&fmt=json&&filter=close\"))","v":{"$error":"#VALUE!"}},{"$f":"VALUE(_xlfn.WEBSERVICE(\"https://eodhd.com/api/real-time/\"&B35&\"?api_token=\"&$B$2&\"&fmt=json&&filter=volume\"))","v":{"$error":"#VALUE!"}},{"$f":"E35*F35","v":{"$error":"#VALUE!"}}]
["Qualcomm Inc","QCOM",{"$f":"VALUE(_xlfn.WEBSERVICE(\"https://eodhd.com/api/fundamentals/\"&B36&\"?api_token=\"&$B$2&\"&fmt=csv&filter=Highlights::MarketCapitalization\"))","v":{"$error":"#VALUE!"}},{"$f":"VALUE(_xlfn.WEBSERVICE(\"https://eodhd.com/api/real-time/\"&B36&\"?api_token=\"&$B$2&\"&fmt=json&&filter=change_p\"))","v":{"$error":"#VALUE!"}},{"$f":"VALUE(_xlfn.WEBSERVICE(\"https://eodhd.com/api/real-time/\"&B36&\"?api_token=\"&$B$2&\"&fmt=json&&filter=close\"))","v":{"$error":"#VALUE!"}},{"$f":"VALUE(_xlfn.WEBSERVICE(\"https://eodhd.com/api/real-time/\"&B36&\"?api_token=\"&$B$2&\"&fmt=json&&filter=volume\"))","v":{"$error":"#VALUE!"}},{"$f":"E36*F36","v":{"$error":"#VALUE!"}}]
["International Business Machines Corporation","IBM",{"$f":"VALUE(_xlfn.WEBSERVICE(\"https://eodhd.com/api/fundamentals/\"&B37&\"?api_token=\"&$B$2&\"&fmt=csv&filter=Highlights::MarketCapitalization\"))","v":{"$error":"#VALUE!"}},{"$f":"VALUE(_xlfn.WEBSERVICE(\"https://eodhd.com/api/real-time/\"&B37&\"?api_token=\"&$B$2&\"&fmt=json&&filter=change_p\"))","v":{"$error":"#VALUE!"}},{"$f":"VALUE(_xlfn.WEBSERVICE(\"https://eodhd.com/api/real-time/\"&B37&\"?api_token=\"&$B$2&\"&fmt=json&&filter=close\"))","v":{"$error":"#VALUE!"}},{"$f":"VALUE(_xlfn.WEBSERVICE(\"https://eodhd.com/api/real-time/\"&B37&\"?api_token=\"&$B$2&\"&fmt=json&&filter=volume\"))","v":{"$error":"#VALUE!"}},{"$f":"E37*F37","v":{"$error":"#VALUE!"}}]
["Costco Wholesale Corp","COST",{"$f":"VALUE(_xlfn.WEBSERVICE(\"https://eodhd.com/api/fundamentals/\"&B38&\"?api_token=\"&$B$2&\"&fmt=csv&filter=Highlights::MarketCapitalization\"))","v":{"$error":"#VALUE!"}},{"$f":"VALUE(_xlfn.WEBSERVICE(\"https://eodhd.com/api/real-time/\"&B38&\"?api_token=\"&$B$2&\"&fmt=json&&filter=change_p\"))","v":{"$error":"#VALUE!"}},{"$f":"VALUE(_xlfn.WEBSERVICE(\"https://eodhd.com/api/real-time/\"&B38&\"?api_token=\"&$B$2&\"&fmt=json&&filter=close\"))","v":{"$error":"#VALUE!"}},{"$f":"VALUE(_xlfn.WEBSERVICE(\"https://eodhd.com/api/real-time/\"&B38&\"?api_token=\"&$B$2&\"&fmt=json&&filter=volume\"))","v":{"$error":"#VALUE!"}},{"$f":"E38*F38","v":{"$error":"#VALUE!"}}]
["Adobe Inc.","ADBE",{"$f":"VALUE(_xlfn.WEBSERVICE(\"https://eodhd.com/api/fundamentals/\"&B39&\"?api_token=\"&$B$2&\"&fmt=csv&filter=Highlights::MarketCapitalization\"))","v":{"$error":"#VALUE!"}},{"$f":"VALUE(_xlfn.WEBSERVICE(\"https://eodhd.com/api/real-time/\"&B39&\"?api_token=\"&$B$2&\"&fmt=json&&filter=change_p\"))","v":{"$error":"#VALUE!"}},{"$f":"VALUE(_xlfn.WEBSERVICE(\"https://eodhd.com/api/real-time/\"&B39&\"?api_token=\"&$B$2&\"&fmt=json&&filter=close\"))","v":{"$error":"#VALUE!"}},{"$f":"VALUE(_xlfn.WEBSERVICE(\"https://eodhd.com/api/real-time/\"&B39&\"?api_token=\"&$B$2&\"&fmt=json&&filter=volume\"))","v":{"$error":"#VALUE!"}},{"$f":"E39*F39","v":{"$error":"#VALUE!"}}]
["Visa Inc.","V",{"$f":"VALUE(_xlfn.WEBSERVICE(\"https://eodhd.com/api/fundamentals/\"&B40&\"?api_token=\"&$B$2&\"&fmt=csv&filter=Highlights::MarketCapitalization\"))","v":{"$error":"#VALUE!"}},{"$f":"VALUE(_xlfn.WEBSERVICE(\"https://eodhd.com/api/real-time/\"&B40&\"?api_token=\"&$B$2&\"&fmt=json&&filter=change_p\"))","v":{"$error":"#VALUE!"}},{"$f":"VALUE(_xlfn.WEBSERVICE(\"https://eodhd.com/api/real-time/\"&B40&\"?api_token=\"&$B$2&\"&fmt=json&&filter=close\"))","v":{"$error":"#VALUE!"}},{"$f":"VALUE(_xlfn.WEBSERVICE(\"https://eodhd.com/api/real-time/\"&B40&\"?api_token=\"&$B$2&\"&fmt=json&&filter=volume\"))","v":{"$error":"#VALUE!"}},{"$f":"E40*F40","v":{"$error":"#VALUE!"}}]
["Mcdonald's Corporation","MCD",{"$f":"VALUE(_xlfn.WEBSERVICE(\"https://eodhd.com/api/fundamentals/\"&B41&\"?api_token=\"&$B$2&\"&fmt=csv&filter=Highlights::MarketCapitalization\"))","v":{"$error":"#VALUE!"}},{"$f":"VALUE(_xlfn.WEBSERVICE(\"https://eodhd.com/api/real-time/\"&B41&\"?api_token=\"&$B$2&\"&fmt=json&&filter=change_p\"))","v":{"$error":"#VALUE!"}},{"$f":"VALUE(_xlfn.WEBSERVICE(\"https://eodhd.com/api/real-time/\"&B41&\"?api_token=\"&$B$2&\"&fmt=json&&filter=close\"))","v":{"$error":"#VALUE!"}},{"$f":"VALUE(_xlfn.WEBSERVICE(\"https://eodhd.com/api/real-time/\"&B41&\"?api_token=\"&$B$2&\"&fmt=json&&filter=volume\"))","v":{"$error":"#VALUE!"}},{"$f":"E41*F41","v":{"$error":"#VALUE!"}}]
["Eli Lilly & Co.","LLY",{"$f":"VALUE(_xlfn.WEBSERVICE(\"https://eodhd.com/api/fundamentals/\"&B42&\"?api_token=\"&$B$2&\"&fmt=csv&filter=Highlights::MarketCapitalization\"))","v":{"$error":"#VALUE!"}},{"$f":"VALUE(_xlfn.WEBSERVICE(\"https://eodhd.com/api/real-time/\"&B42&\"?api_token=\"&$B$2&\"&fmt=json&&filter=change_p\"))","v":{"$error":"#VALUE!"}},{"$f":"VALUE(_xlfn.WEBSERVICE(\"https://eodhd.com/api/real-time/\"&B42&\"?api_token=\"&$B$2&\"&fmt=json&&filter=close\"))","v":{"$error":"#VALUE!"}},{"$f":"VALUE(_xlfn.WEBSERVICE(\"https://eodhd.com/api/real-time/\"&B42&\"?api_token=\"&$B$2&\"&fmt=json&&filter=volume\"))","v":{"$error":"#VALUE!"}},{"$f":"E42*F42","v":{"$error":"#VALUE!"}}]
["Salesforce, Inc.","CRM",{"$f":"VALUE(_xlfn.WEBSERVICE(\"https://eodhd.com/api/fundamentals/\"&B43&\"?api_token=\"&$B$2&\"&fmt=csv&filter=Highlights::MarketCapitalization\"))","v":{"$error":"#VALUE!"}},{"$f":"VALUE(_xlfn.WEBSERVICE(\"https://eodhd.com/api/real-time/\"&B43&\"?api_token=\"&$B$2&\"&fmt=json&&filter=change_p\"))","v":{"$error":"#VALUE!"}},{"$f":"VALUE(_xlfn.WEBSERVICE(\"https://eodhd.com/api/real-time/\"&B43&\"?api_token=\"&$B$2&\"&fmt=json&&filter=close\"))","v":{"$error":"#VALUE!"}},{"$f":"VALUE(_xlfn.WEBSERVICE(\"https://eodhd.com/api/real-time/\"&B43&\"?api_token=\"&$B$2&\"&fmt=json&&filter=volume\"))","v":{"$error":"#VALUE!"}},{"$f":"E43*F43","v":{"$error":"#VALUE!"}}]
["Microsoft Corp","MSFT",{"$f":"VALUE(_xlfn.WEBSERVICE(\"https://eodhd.com/api/fundamentals/\"&B44&\"?api_token=\"&$B$2&\"&fmt=csv&filter=Highlights::MarketCapitalization\"))","v":{"$error":"#VALUE!"}},{"$f":"VALUE(_xlfn.WEBSERVICE(\"https://eodhd.com/api/real-time/\"&B44&\"?api_token=\"&$B$2&\"&fmt=json&&filter=change_p\"))","v":{"$error":"#VALUE!"}},{"$f":"VALUE(_xlfn.WEBSERVICE(\"https://eodhd.com/api/real-time/\"&B44&\"?api_token=\"&$B$2&\"&fmt=json&&filter=close\"))","v":{"$error":"#VALUE!"}},{"$f":"VALUE(_xlfn.WEBSERVICE(\"https://eodhd.com/api/real-time/\"&B44&\"?api_token=\"&$B$2&\"&fmt=json&&filter=volume\"))","v":{"$error":"#VALUE!"}},{"$f":"E44*F44","v":{"$error":"#VALUE!"}}]
["Procter & Gamble Company","PG",{"$f":"VALUE(_xlfn.WEBSERVICE(\"https://eodhd.com/api/fundamentals/\"&B45&\"?api_token=\"&$B$2&\"&fmt=csv&filter=Highlights::MarketCapitalization\"))","v":{"$error":"#VALUE!"}},{"$f":"VALUE(_xlfn.WEBSERVICE(\"https://eodhd.com/api/real-time/\"&B45&\"?api_token=\"&$B$2&\"&fmt=json&&filter=change_p\"))","v":{"$error":"#VALUE!"}},{"$f":"VALUE(_xlfn.WEBSERVICE(\"https://eodhd.com/api/real-time/\"&B45&\"?api_token=\"&$B$2&\"&fmt=json&&filter=close\"))","v":{"$error":"#VALUE!"}},{"$f":"VALUE(_xlfn.WEBSERVICE(\"https://eodhd.com/api/real-time/\"&B45&\"?api_token=\"&$B$2&\"&fmt=json&&filter=volume\"))","v":{"$error":"#VALUE!"}},{"$f":"E45*F45","v":{"$error":"#VALUE!"}}]
["Linde Plc","LIN",{"$f":"VALUE(_xlfn.WEBSERVICE(\"https://eodhd.com/api/fundamentals/\"&B46&\"?api_token=\"&$B$2&\"&fmt=csv&filter=Highlights::MarketCapitalization\"))","v":{"$error":"#VALUE!"}},{"$f":"VALUE(_xlfn.WEBSERVICE(\"https://eodhd.com/api/real-time/\"&B46&\"?api_token=\"&$B$2&\"&fmt=json&&filter=change_p\"))","v":{"$error":"#VALUE!"}},{"$f":"VALUE(_xlfn.WEBSERVICE(\"https://eodhd.com/api/real-time/\"&B46&\"?api_token=\"&$B$2&\"&fmt=json&&filter=close\"))","v":{"$error":"#VALUE!"}},{"$f":"VALUE(_xlfn.WEBSERVICE(\"https://eodhd.com/api/real-time/\"&B46&\"?api_token=\"&$B$2&\"&fmt=json&&filter=volume\"))","v":{"$error":"#VALUE!"}},{"$f":"E46*F46","v":{"$error":"#VALUE!"}}]
["Home Depot, Inc.","HD",{"$f":"VALUE(_xlfn.WEBSERVICE(\"https://eodhd.com/api/fundamentals/\"&B47&\"?api_token=\"&$B$2&\"&fmt=csv&filter=Highlights::MarketCapitalization\"))","v":{"$error":"#VALUE!"}},{"$f":"VALUE(_xlfn.WEBSERVICE(\"https://eodhd.com/api/real-time/\"&B47&\"?api_token=\"&$B$2&\"&fmt=json&&filter=change_p\"))","v":{"$error":"#VALUE!"}},{"$f":"VALUE(_xlfn.WEBSERVICE(\"https://eodhd.com/api/real-time/\"&B47&\"?api_token=\"&$B$2&\"&fmt=json&&filter=close\"))","v":{"$error":"#VALUE!"}},{"$f":"VALUE(_xlfn.WEBSERVICE(\"https://eodhd.com/api/real-time/\"&B47&\"?api_token=\"&$B$2&\"&fmt=json&&filter=volume\"))","v":{"$error":"#VALUE!"}},{"$f":"E47*F47","v":{"$error":"#VALUE!"}}]
["Applied Materials Inc","AMAT",{"$f":"VALUE(_xlfn.WEBSERVICE(\"https://eodhd.com/api/fundamentals/\"&B48&\"?api_token=\"&$B$2&\"&fmt=csv&filter=Highlights::MarketCapitalization\"))","v":{"$error":"#VALUE!"}},{"$f":"VALUE(_xlfn.WEBSERVICE(\"https://eodhd.com/api/real-time/\"&B48&\"?api_token=\"&$B$2&\"&fmt=json&&filter=change_p\"))","v":{"$error":"#VALUE!"}},{"$f":"VALUE(_xlfn.WEBSERVICE(\"https://eodhd.com/api/real-time/\"&B48&\"?api_token=\"&$B$2&\"&fmt=json&&filter=close\"))","v":{"$error":"#VALUE!"}},{"$f":"VALUE(_xlfn.WEBSERVICE(\"https://eodhd.com/api/real-time/\"&B48&\"?api_token=\"&$B$2&\"&fmt=json&&filter=volume\"))","v":{"$error":"#VALUE!"}},{"$f":"E48*F48","v":{"$error":"#VALUE!"}}]
["Walmart Inc.","WMT",{"$f":"VALUE(_xlfn.WEBSERVICE(\"https://eodhd.com/api/fundamentals/\"&B49&\"?api_token=\"&$B$2&\"&fmt=csv&filter=Highlights::MarketCapitalization\"))","v":{"$error":"#VALUE!"}},{"$f":"VALUE(_xlfn.WEBSERVICE(\"https://eodhd.com/api/real-time/\"&B49&\"?api_token=\"&$B$2&\"&fmt=json&&filter=change_p\"))","v":{"$error":"#VALUE!"}},{"$f":"VALUE(_xlfn.WEBSERVICE(\"https://eodhd.com/api/real-time/\"&B49&\"?api_token=\"&$B$2&\"&fmt=json&&filter=close\"))","v":{"$error":"#VALUE!"}},{"$f":"VALUE(_xlfn.WEBSERVICE(\"https://eodhd.com/api/real-time/\"&B49&\"?api_token=\"&$B$2&\"&fmt=json&&filter=volume\"))","v":{"$error":"#VALUE!"}},{"$f":"E49*F49","v":{"$error":"#VALUE!"}}]
["Netflix Inc","NFLX",{"$f":"VALUE(_xlfn.WEBSERVICE(\"https://eodhd.com/api/fundamentals/\"&B50&\"?api_token=\"&$B$2&\"&fmt=csv&filter=Highlights::MarketCapitalization\"))","v":{"$error":"#VALUE!"}},{"$f":"VALUE(_xlfn.WEBSERVICE(\"https://eodhd.com/api/real-time/\"&B50&\"?api_token=\"&$B$2&\"&fmt=json&&filter=change_p\"))","v":{"$error":"#VALUE!"}},{"$f":"VALUE(_xlfn.WEBSERVICE(\"https://eodhd.com/api/real-time/\"&B50&\"?api_token=\"&$B$2&\"&fmt=json&&filter=close\"))","v":{"$error":"#VALUE!"}},{"$f":"VALUE(_xlfn.WEBSERVICE(\"https://eodhd.com/api/real-time/\"&B50&\"?api_token=\"&$B$2&\"&fmt=json&&filter=volume\"))","v":{"$error":"#VALUE!"}},{"$f":"E50*F50","v":{"$error":"#VALUE!"}}]
["Apple Inc.","AAPL",{"$f":"VALUE(_xlfn.WEBSERVICE(\"https://eodhd.com/api/fundamentals/\"&B51&\"?api_token=\"&$B$2&\"&fmt=csv&filter=Highlights::MarketCapitalization\"))","v":{"$error":"#VALUE!"}},{"$f":"VALUE(_xlfn.WEBSERVICE(\"https://eodhd.com/api/real-time/\"&B51&\"?api_token=\"&$B$2&\"&fmt=json&&filter=change_p\"))","v":{"$error":"#VALUE!"}},{"$f":"VALUE(_xlfn.WEBSERVICE(\"https://eodhd.com/api/real-time/\"&B51&\"?api_token=\"&$B$2&\"&fmt=json&&filter=close\"))","v":{"$error":"#VALUE!"}},{"$f":"VALUE(_xlfn.WEBSERVICE(\"https://eodhd.com/api/real-time/\"&B51&\"?api_token=\"&$B$2&\"&fmt=json&&filter=volume\"))","v":{"$error":"#VALUE!"}},{"$f":"E51*F51","v":{"$error":"#VALUE!"}}]
["Uber Technologies, Inc.","UBER",{"$f":"VALUE(_xlfn.WEBSERVICE(\"https://eodhd.com/api/fundamentals/\"&B52&\"?api_token=\"&$B$2&\"&fmt=csv&filter=Highlights::MarketCapitalization\"))","v":{"$error":"#VALUE!"}},{"$f":"VALUE(_xlfn.WEBSERVICE(\"https://eodhd.com/api/real-time/\"&B52&\"?api_token=\"&$B$2&\"&fmt=json&&filter=change_p\"))","v":{"$error":"#VALUE!"}},{"$f":"VALUE(_xlfn.WEBSERVICE(\"https://eodhd.com/api/real-time/\"&B52&\"?api_token=\"&$B$2&\"&fmt=json&&filter=close\"))","v":{"$error":"#VALUE!"}},{"$f":"VALUE(_xlfn.WEBSERVICE(\"https://eodhd.com/api/real-time/\"&B52&\"?api_token=\"&$B$2&\"&fmt=json&&filter=volume\"))","v":{"$error":"#VALUE!"}},{"$f":"E52*F52","v":{"$error":"#VALUE!"}}]
["Meta Platforms, Inc. Class A","META",{"$f":"VALUE(_xlfn.WEBSERVICE(\"https://eodhd.com/api/fundamentals/\"&B53&\"?api_token=\"&$B$2&\"&fmt=csv&filter=Highlights::MarketCapitalization\"))","v":{"$error":"#VALUE!"}},{"$f":"VALUE(_xlfn.WEBSERVICE(\"https://eodhd.com/api/real-time/\"&B53&\"?api_token=\"&$B$2&\"&fmt=json&&filter=change_p\"))","v":{"$error":"#VALUE!"}},{"$f":"VALUE(_xlfn.WEBSERVICE(\"https://eodhd.com/api/real-time/\"&B53&\"?api_token=\"&$B$2&\"&fmt=json&&filter=close\"))","v":{"$error":"#VALUE!"}},{"$f":"VALUE(_xlfn.WEBSERVICE(\"https://eodhd.com/api/real-time/\"&B53&\"?api_token=\"&$B$2&\"&fmt=json&&filter=volume\"))","v":{"$error":"#VALUE!"}},{"$f":"E53*F53","v":{"$error":"#VALUE!"}}]
["Tesla, Inc.","TSLA",{"$f":"VALUE(_xlfn.WEBSERVICE(\"https://eodhd.com/api/fundamentals/\"&B54&\"?api_token=\"&$B$2&\"&fmt=csv&filter=Highlights::MarketCapitalization\"))","v":{"$error":"#VALUE!"}},{"$f":"VALUE(_xlfn.WEBSERVICE(\"https://eodhd.com/api/real-time/\"&B54&\"?api_token=\"&$B$2&\"&fmt=json&&filter=change_p\"))","v":{"$error":"#VALUE!"}},{"$f":"VALUE(_xlfn.WEBSERVICE(\"https://eodhd.com/api/real-time/\"&B54&\"?api_token=\"&$B$2&\"&fmt=json&&filter=close\"))","v":{"$error":"#VALUE!"}},{"$f":"VALUE(_xlfn.WEBSERVICE(\"https://eodhd.com/api/real-time/\"&B54&\"?api_token=\"&$B$2&\"&fmt=json&&filter=volume\"))","v":{"$error":"#VALUE!"}},{"$f":"E54*F54","v":{"$error":"#VALUE!"}}]
["General Electric Company","GE",{"$f":"VALUE(_xlfn.WEBSERVICE(\"https://eodhd.com/api/fundamentals/\"&B55&\"?api_token=\"&$B$2&\"&fmt=csv&filter=Highlights::MarketCapitalization\"))","v":{"$error":"#VALUE!"}},{"$f":"VALUE(_xlfn.WEBSERVICE(\"https://eodhd.com/api/real-time/\"&B55&\"?api_token=\"&$B$2&\"&fmt=json&&filter=change_p\"))","v":{"$error":"#VALUE!"}},{"$f":"VALUE(_xlfn.WEBSERVICE(\"https://eodhd.com/api/real-time/\"&B55&\"?api_token=\"&$B$2&\"&fmt=json&&filter=close\"))","v":{"$error":"#VALUE!"}},{"$f":"VALUE(_xlfn.WEBSERVICE(\"https://eodhd.com/api/real-time/\"&B55&\"?api_token=\"&$B$2&\"&fmt=json&&filter=volume\"))","v":{"$error":"#VALUE!"}},{"$f":"E55*F55","v":{"$error":"#VALUE!"}}]

{"sheet":"Prices","index":1,"n_rows":3,"n_cols":51,"rows_kept":3,"cut":false,"hidden":false,"merged":[]}
["Prices from the Jun of 2024"]
[{"$f":"TRANSPOSE(Main!B6:B55)","v":"ACN"},"DIS","XOM","VZ","ABBV","INTC","CVX","PEP","TXN","MA","CMCSA","WFC","AVGO","AMD","CAT","JPM","DHR","UNH","TMO","AMZN","BAC","CSCO","ORCL","KO","GOOG","INTU","ABT","MRK","JNJ","NVDA","QCOM","IBM","COST","ADBE","V","MCD","LLY","CRM","MSFT","PG","LIN","HD","AMAT","WMT","NFLX","AAPL","UBER","META","TSLA","GE"]
[{"$f":"VALUE(TRANSPOSE(_xlfn.TEXTSPLIT(_xlfn.WEBSERVICE(\"https://eodhd.com/api/eod/\"&A2&\"?api_token=\"&Main!$B$2&\"&fmt=json&filter=adjusted_close&from=2024-01-01\"),\",\")))","v":{"$error":"#VALUE!"}},{"$f":"VALUE(TRANSPOSE(_xlfn.TEXTSPLIT(_xlfn.WEBSERVICE(\"https://eodhd.com/api/eod/\"&B2&\"?api_token=\"&Main!$B$2&\"&fmt=json&filter=adjusted_close&from=2024-01-01\"),\",\")))","v":{"$error":"#VALUE!"}},{"$f":"VALUE(TRANSPOSE(_xlfn.TEXTSPLIT(_xlfn.WEBSERVICE(\"https://eodhd.com/api/eod/\"&C2&\"?api_token=\"&Main!$B$2&\"&fmt=json&filter=adjusted_close&from=2024-01-01\"),\",\")))","v":{"$error":"#VALUE!"}},{"$f":"VALUE(TRANSPOSE(_xlfn.TEXTSPLIT(_xlfn.WEBSERVICE(\"https://eodhd.com/api/eod/\"&D2&\"?api_token=\"&Main!$B$2&\"&fmt=json&filter=adjusted_close&from=2024-01-01\"),\",\")))","v":{"$error":"#VALUE!"}},{"$f":"VALUE(TRANSPOSE(_xlfn.TEXTSPLIT(_xlfn.WEBSERVICE(\"https://eodhd.com/api/eod/\"&E2&\"?api_token=\"&Main!$B$2&\"&fmt=json&filter=adjusted_close&from=2024-01-01\"),\",\")))","v":{"$error":"#VALUE!"}},{"$f":"VALUE(TRANSPOSE(_xlfn.TEXTSPLIT(_xlfn.WEBSERVICE(\"https://eodhd.com/api/eod/\"&F2&\"?api_token=\"&Main!$B$2&\"&fmt=json&filter=adjusted_close&from=2024-01-01\"),\",\")))","v":{"$error":"#VALUE!"}},{"$f":"VALUE(TRANSPOSE(_xlfn.TEXTSPLIT(_xlfn.WEBSERVICE(\"https://eodhd.com/api/eod/\"&G2&\"?api_token=\"&Main!$B$2&\"&fmt=json&filter=adjusted_close&from=2024-01-01\"),\",\")))","v":{"$error":"#VALUE!"}},{"$f":"VALUE(TRANSPOSE(_xlfn.TEXTSPLIT(_xlfn.WEBSERVICE(\"https://eodhd.com/api/eod/\"&H2&\"?api_token=\"&Main!$B$2&\"&fmt=json&filter=adjusted_close&from=2024-01-01\"),\",\")))","v":{"$error":"#VALUE!"}},{"$f":"VALUE(TRANSPOSE(_xlfn.TEXTSPLIT(_xlfn.WEBSERVICE(\"https://eodhd.com/api/eod/\"&I2&\"?api_token=\"&Main!$B$2&\"&fmt=json&filter=adjusted_close&from=2024-01-01\"),\",\")))","v":{"$error":"#VALUE!"}},{"$f":"VALUE(TRANSPOSE(_xlfn.TEXTSPLIT(_xlfn.WEBSERVICE(\"https://eodhd.com/api/eod/\"&J2&\"?api_token=\"&Main!$B$2&\"&fmt=json&filter=adjusted_close&from=2024-01-01\"),\",\")))","v":{"$error":"#VALUE!"}},{"$f":"VALUE(TRANSPOSE(_xlfn.TEXTSPLIT(_xlfn.WEBSERVICE(\"https://eodhd.com/api/eod/\"&K2&\"?api_token=\"&Main!$B$2&\"&fmt=json&filter=adjusted_close&from=2024-01-01\"),\",\")))","v":{"$error":"#VALUE!"}},{"$f":"VALUE(TRANSPOSE(_xlfn.TEXTSPLIT(_xlfn.WEBSERVICE(\"https://eodhd.com/api/eod/\"&L2&\"?api_token=\"&Main!$B$2&\"&fmt=json&filter=adjusted_close&from=2024-01-01\"),\",\")))","v":{"$error":"#VALUE!"}},{"$f":"VALUE(TRANSPOSE(_xlfn.TEXTSPLIT(_xlfn.WEBSERVICE(\"https://eodhd.com/api/eod/\"&M2&\"?api_token=\"&Main!$B$2&\"&fmt=json&filter=adjusted_close&from=2024-01-01\"),\",\")))","v":{"$error":"#VALUE!"}},{"$f":"VALUE(TRANSPOSE(_xlfn.TEXTSPLIT(_xlfn.WEBSERVICE(\"https://eodhd.com/api/eod/\"&N2&\"?api_token=\"&Main!$B$2&\"&fmt=json&filter=adjusted_close&from=2024-01-01\"),\",\")))","v":{"$error":"#VALUE!"}},{"$f":"VALUE(TRANSPOSE(_xlfn.TEXTSPLIT(_xlfn.WEBSERVICE(\"https://eodhd.com/api/eod/\"&O2&\"?api_token=\"&Main!$B$2&\"&fmt=json&filter=adjusted_close&from=2024-01-01\"),\",\")))","v":{"$error":"#VALUE!"}},{"$f":"VALUE(TRANSPOSE(_xlfn.TEXTSPLIT(_xlfn.WEBSERVICE(\"https://eodhd.com/api/eod/\"&P2&\"?api_token=\"&Main!$B$2&\"&fmt=json&filter=adjusted_close&from=2024-01-01\"),\",\")))","v":{"$error":"#VALUE!"}},{"$f":"VALUE(TRANSPOSE(_xlfn.TEXTSPLIT(_xlfn.WEBSERVICE(\"https://eodhd.com/api/eod/\"&Q2&\"?api_token=\"&Main!$B$2&\"&fmt=json&filter=adjusted_close&from=2024-01-01\"),\",\")))","v":{"$error":"#VALUE!"}},{"$f":"VALUE(TRANSPOSE(_xlfn.TEXTSPLIT(_xlfn.WEBSERVICE(\"https://eodhd.com/api/eod/\"&R2&\"?api_token=\"&Main!$B$2&\"&fmt=json&filter=adjusted_close&from=2024-01-01\"),\",\")))","v":{"$error":"#VALUE!"}},{"$f":"VALUE(TRANSPOSE(_xlfn.TEXTSPLIT(_xlfn.WEBSERVICE(\"https://eodhd.com/api/eod/\"&S2&\"?api_token=\"&Main!$B$2&\"&fmt=json&filter=adjusted_close&from=2024-01-01\"),\",\")))","v":{"$error":"#VALUE!"}},{"$f":"VALUE(TRANSPOSE(_xlfn.TEXTSPLIT(_xlfn.WEBSERVICE(\"https://eodhd.com/api/eod/\"&T2&\"?api_token=\"&Main!$B$2&\"&fmt=json&filter=adjusted_close&from=2024-01-01\"),\",\")))","v":{"$error":"#VALUE!"}},{"$f":"VALUE(TRANSPOSE(_xlfn.TEXTSPLIT(_xlfn.WEBSERVICE(\"https://eodhd.com/api/eod/\"&U2&\"?api_token=\"&Main!$B$2&\"&fmt=json&filter=adjusted_close&from=2024-01-01\"),\",\")))","v":{"$error":"#VALUE!"}},{"$f":"VALUE(TRANSPOSE(_xlfn.TEXTSPLIT(_xlfn.WEBSERVICE(\"https://eodhd.com/api/eod/\"&V2&\"?api_token=\"&Main!$B$2&\"&fmt=json&filter=adjusted_close&from=2024-01-01\"),\",\")))","v":{"$error":"#VALUE!"}},{"$f":"VALUE(TRANSPOSE(_xlfn.TEXTSPLIT(_xlfn.WEBSERVICE(\"https://eodhd.com/api/eod/\"&W2&\"?api_token=\"&Main!$B$2&\"&fmt=json&filter=adjusted_close&from=2024-01-01\"),\",\")))","v":{"$error":"#VALUE!"}},{"$f":"VALUE(TRANSPOSE(_xlfn.TEXTSPLIT(_xlfn.WEBSERVICE(\"https://eodhd.com/api/eod/\"&X2&\"?api_token=\"&Main!$B$2&\"&fmt=json&filter=adjusted_close&from=2024-01-01\"),\",\")))","v":{"$error":"#VALUE!"}},{"$f":"VALUE(TRANSPOSE(_xlfn.TEXTSPLIT(_xlfn.WEBSERVICE(\"https://eodhd.com/api/eod/\"&Y2&\"?api_token=\"&Main!$B$2&\"&fmt=json&filter=adjusted_close&from=2024-01-01\"),\",\")))","v":{"$error":"#VALUE!"}},{"$f":"VALUE(TRANSPOSE(_xlfn.TEXTSPLIT(_xlfn.WEBSERVICE(\"https://eodhd.com/api/eod/\"&Z2&\"?api_token=\"&Main!$B$2&\"&fmt=json&filter=adjusted_close&from=2024-01-01\"),\",\")))","v":{"$error":"#VALUE!"}},{"$f":"VALUE(TRANSPOSE(_xlfn.TEXTSPLIT(_xlfn.WEBSERVICE(\"https://eodhd.com/api/eod/\"&AA2&\"?api_token=\"&Main!$B$2&\"&fmt=json&filter=adjusted_close&from=2024-01-01\"),\",\")))","v":{"$error":"#VALUE!"}},{"$f":"VALUE(TRANSPOSE(_xlfn.TEXTSPLIT(_xlfn.WEBSERVICE(\"https://eodhd.com/api/eod/\"&AB2&\"?api_token=\"&Main!$B$2&\"&fmt=json&filter=adjusted_close&from=2024-01-01\"),\",\")))","v":{"$error":"#VALUE!"}},{"$f":"VALUE(TRANSPOSE(_xlfn.TEXTSPLIT(_xlfn.WEBSERVICE(\"https://eodhd.com/api/eod/\"&AC2&\"?api_token=\"&Main!$B$2&\"&fmt=json&filter=adjusted_close&from=2024-01-01\"),\",\")))","v":{"$error":"#VALUE!"}},{"$f":"VALUE(TRANSPOSE(_xlfn.TEXTSPLIT(_xlfn.WEBSERVICE(\"https://eodhd.com/api/eod/\"&AD2&\"?api_token=\"&Main!$B$2&\"&fmt=json&filter=adjusted_close&from=2024-01-01\"),\",\")))","v":{"$error":"#VALUE!"}},{"$f":"VALUE(TRANSPOSE(_xlfn.TEXTSPLIT(_xlfn.WEBSERVICE(\"https://eodhd.com/api/eod/\"&AE2&\"?api_token=\"&Main!$B$2&\"&fmt=json&filter=adjusted_close&from=2024-01-01\"),\",\")))","v":{"$error":"#VALUE!"}},{"$f":"VALUE(TRANSPOSE(_xlfn.TEXTSPLIT(_xlfn.WEBSERVICE(\"https://eodhd.com/api/eod/\"&AF2&\"?api_token=\"&Main!$B$2&\"&fmt=json&filter=adjusted_close&from=2024-01-01\"),\",\")))","v":{"$error":"#VALUE!"}},{"$f":"VALUE(TRANSPOSE(_xlfn.TEXTSPLIT(_xlfn.WEBSERVICE(\"https://eodhd.com/api/eod/\"&AG2&\"?api_token=\"&Main!$B$2&\"&fmt=json&filter=adjusted_close&from=2024-01-01\"),\",\")))","v":{"$error":"#VALUE!"}},{"$f":"VALUE(TRANSPOSE(_xlfn.TEXTSPLIT(_xlfn.WEBSERVICE(\"https://eodhd.com/api/eod/\"&AH2&\"?api_token=\"&Main!$B$2&\"&fmt=json&filter=adjusted_close&from=2024-01-01\"),\",\")))","v":{"$error":"#VALUE!"}},{"$f":"VALUE(TRANSPOSE(_xlfn.TEXTSPLIT(_xlfn.WEBSERVICE(\"https://eodhd.com/api/eod/\"&AI2&\"?api_token=\"&Main!$B$2&\"&fmt=json&filter=adjusted_close&from=2024-01-01\"),\",\")))","v":{"$error":"#VALUE!"}},{"$f":"VALUE(TRANSPOSE(_xlfn.TEXTSPLIT(_xlfn.WEBSERVICE(\"https://eodhd.com/api/eod/\"&AJ2&\"?api_token=\"&Main!$B$2&\"&fmt=json&filter=adjusted_close&from=2024-01-01\"),\",\")))","v":{"$error":"#VALUE!"}},{"$f":"VALUE(TRANSPOSE(_xlfn.TEXTSPLIT(_xlfn.WEBSERVICE(\"https://eodhd.com/api/eod/\"&AK2&\"?api_token=\"&Main!$B$2&\"&fmt=json&filter=adjusted_close&from=2024-01-01\"),\",\")))","v":{"$error":"#VALUE!"}},{"$f":"VALUE(TRANSPOSE(_xlfn.TEXTSPLIT(_xlfn.WEBSERVICE(\"https://eodhd.com/api/eod/\"&AL2&\"?api_token=\"&Main!$B$2&\"&fmt=json&filter=adjusted_close&from=2024-01-01\"),\",\")))","v":{"$error":"#VALUE!"}},{"$f":"VALUE(TRANSPOSE(_xlfn.TEXTSPLIT(_xlfn.WEBSERVICE(\"https://eodhd.com/api/eod/\"&AM2&\"?api_token=\"&Main!$B$2&\"&fmt=json&filter=adjusted_close&from=2024-01-01\"),\",\")))","v":{"$error":"#VALUE!"}},{"$f":"VALUE(TRANSPOSE(_xlfn.TEXTSPLIT(_xlfn.WEBSERVICE(\"https://eodhd.com/api/eod/\"&AN2&\"?api_token=\"&Main!$B$2&\"&fmt=json&filter=adjusted_close&from=2024-01-01\"),\",\")))","v":{"$error":"#VALUE!"}},{"$f":"VALUE(TRANSPOSE(_xlfn.TEXTSPLIT(_xlfn.WEBSERVICE(\"https://eodhd.com/api/eod/\"&AO2&\"?api_token=\"&Main!$B$2&\"&fmt=json&filter=adjusted_close&from=2024-01-01\"),\",\")))","v":{"$error":"#VALUE!"}},{"$f":"VALUE(TRANSPOSE(_xlfn.TEXTSPLIT(_xlfn.WEBSERVICE(\"https://eodhd.com/api/eod/\"&AP2&\"?api_token=\"&Main!$B$2&\"&fmt=json&filter=adjusted_close&from=2024-01-01\"),\",\")))","v":{"$error":"#VALUE!"}},{"$f":"VALUE(TRANSPOSE(_xlfn.TEXTSPLIT(_xlfn.WEBSERVICE(\"https://eodhd.com/api/eod/\"&AQ2&\"?api_token=\"&Main!$B$2&\"&fmt=json&filter=adjusted_close&from=2024-01-01\"),\",\")))","v":{"$error":"#VALUE!"}},{"$f":"VALUE(TRANSPOSE(_xlfn.TEXTSPLIT(_xlfn.WEBSERVICE(\"https://eodhd.com/api/eod/\"&AR2&\"?api_token=\"&Main!$B$2&\"&fmt=json&filter=adjusted_close&from=2024-01-01\"),\",\")))","v":{"$error":"#VALUE!"}},{"$f":"VALUE(TRANSPOSE(_xlfn.TEXTSPLIT(_xlfn.WEBSERVICE(\"https://eodhd.com/api/eod/\"&AS2&\"?api_token=\"&Main!$B$2&\"&fmt=json&filter=adjusted_close&from=2024-01-01\"),\",\")))","v":{"$error":"#VALUE!"}},{"$f":"VALUE(TRANSPOSE(_xlfn.TEXTSPLIT(_xlfn.WEBSERVICE(\"https://eodhd.com/api/eod/\"&AT2&\"?api_token=\"&Main!$B$2&\"&fmt=json&filter=adjusted_close&from=2024-01-01\"),\",\")))","v":{"$error":"#VALUE!"}},{"$f":"VALUE(TRANSPOSE(_xlfn.TEXTSPLIT(_xlfn.WEBSERVICE(\"https://eodhd.com/api/eod/\"&AU2&\"?api_token=\"&Main!$B$2&\"&fmt=json&filter=adjusted_close&from=2024-01-01\"),\",\")))","v":{"$error":"#VALUE!"}},{"$f":"VALUE(TRANSPOSE(_xlfn.TEXTSPLIT(_xlfn.WEBSERVICE(\"https://eodhd.com/api/eod/\"&AV2&\"?api_token=\"&Main!$B$2&\"&fmt=json&filter=adjusted_close&from=2024-01-01\"),\",\")))","v":{"$error":"#VALUE!"}},{"$f":"VALUE(TRANSPOSE(_xlfn.TEXTSPLIT(_xlfn.WEBSERVICE(\"https://eodhd.com/api/eod/\"&AW2&\"?api_token=\"&Main!$B$2&\"&fmt=json&filter=adjusted_close&from=2024-01-01\"),\",\")))","v":{"$error":"#VALUE!"}},{"$f":"VALUE(TRANSPOSE(_xlfn.TEXTSPLIT(_xlfn.WEBSERVICE(\"https://eodhd.com/api/eod/\"&AX2&\"?api_token=\"&Main!$B$2&\"&fmt=json&filter=adjusted_close&from=2024-01-01\"),\",\")))","v":{"$error":"#VALUE!"}},{"$f":"TRANSPOSE(_xlfn.TEXTSPLIT(SUBSTITUTE(SUBSTITUTE(_xlfn.WEBSERVICE(\"https://eodhd.com/api/eod/\"&AX2&\"?api_token=\"&Main!$B$2&\"&fmt=json&filter=date&from=2024-01-01\"),\"\"\"\",\"\"),\"-\",\"/\"),\",\"))","v":{"$error":"#VALUE!"}}]